Cogmind - Beta 10.2 @@@ ROGUE MODE // 2021.06.28 @ 02:29:46 Player: Sebsebeleb Result: Destroyed by S-27 Virus with Autogun Performance ------------- Evolutions (3) 1500 Regions Visited (7) 1400 Robots Destroyed (98) 490 Value Destroyed (3658) 3658 Prototype IDs (14) 280 Alien Tech Used (0) 0 Bonus (830) 830 TOTAL SCORE: 8158 Bonus ------- High Alert Combat Kills 530 Aligned with FarCom 300 Cogmind --------- Core Integrity 0/700 Matter 285/300 Energy 130/160 System Corruption 3% Temperature Cool (60) Movement Treading (160) Location -7/Storage Parts ------- > --- POWER (1) -------- Light Nuclear Core > --- PROPULSION (4) --- Light Treads Light Treads Light Treads Wheel > --- UTILITY (6) ------ Improved Heat Sink Medium Storage Unit Large Storage Unit Improved Signal Interpreter Improved Power Shielding Hacking Suite > --- WEAPON (2) ------- Gatling Laser > --- INVENTORY (14) --- Light Angular Momentum Engine Medium Storage Unit Medium Storage Unit Compact Matter Pod (150) AWS/Thermal Ion Cannon Ion Cannon Flak Gun Improved Datajack Heavy Flail Peak State ------------ > --- POWER ------------ Light Angular Momentum Engine > --- PROPULSION ------- Carbon-fiber Leg Titanium Leg Titanium Leg Cooled Airjet > --- UTILITY ---------- Advanced Heat Sink Medium Storage Unit Large Storage Unit Improved Signal Interpreter Hardened Medium Armor Plating Hacking Suite > --- WEAPON ----------- Advanced Beam Cannon Enhanced Autogun > --- INVENTORY -------- Carbon-fiber Leg Medium Storage Unit Compact Matter Pod Improved Sensor Array Improved Medium Armor Plating Improved Medium Armor Plating AWS/Thermal Assault Cannon Assault Cannon Datajack Hammer [Rating: 45] Favorites ----------- Power Improved Deuterium Engine Engine Improved Deuterium Engine Power Core Light Nuclear Core Propulsion Titanium Leg Treads Light Treads Leg Titanium Leg Wheel Wheel Hover Unit Cooled Airjet Utility Medium Storage Unit Device System Backup Module Storage Medium Storage Unit Processor Improved Signal Interpreter Hackware Hacking Suite Protection Improved Medium Armor Plating Weapon Enhanced Autogun Energy Gun AWS/Thermal Energy Cannon Ion Cannon Ballistic Gun Enhanced Autogun Ballistic Cannon Assault Cannon Impact Weapon Heavy Mace Build | -11 -10 -10 -10 -9 -8 -7 -7 ------- Run | Scr Mat Min Exi Min Mat Fac Sto Slots Evolved 6 | . . . . . 4 2 . Power . | . . . . . . . . Propulsion 2 | . . . . . 2 . . Utility 4 | . . . . . 2 2 . Weapon . | . . . . . . . . Parts Attached 124 | 9 9 1 3 1 25 46 30 Power 7 | 1 . . . . 2 3 1 Engine 6 | 1 . . . . 2 3 . Core 1 | . . . . . . . 1 Reactor . | . . . . . . . . Propulsion 35 | 3 2 . . . 11 12 7 Treads 13 | . . . . . 6 2 5 Leg 19 | 2 2 . . . 5 9 1 Wheel 2 | 1 . . . . . . 1 Hover 1 | . . . . . . 1 . Flight . | . . . . . . . . Utility 34 | 3 2 . . 1 7 9 12 Device 10 | 1 . . . 1 1 3 4 Storage 6 | 1 1 . . . 2 1 1 Processor 3 | 1 1 . . . 1 . . Hackware 1 | . . . . . . 1 . Protection 14 | . . . . . 3 4 7 Artifact . | . . . . . . . . Weapon 48 | 2 5 1 3 . 5 22 10 Energy Gun 9 | 1 . . 2 . 2 2 2 Energy Cannon 8 | . . . 1 . 1 3 3 Ballistic Gun 13 | 1 3 1 . . 1 5 2 Ballistic Cannon 8 | . 2 . . . 1 5 . Launcher . | . . . . . . . . Special Weapon . | . . . . . . . . Impact Weapon 10 | . . . . . . 7 3 Slashing Weapon . | . . . . . . . . Piercing Weapon . | . . . . . . . . Special Melee Weapon . | . . . . . . . . Unidentified Prototypes 5 | . . . 2 . 1 2 . Parts Lost 27 | . 1 3 . . 1 15 7 Power 4 | . . . . . 1 2 1 Propulsion 7 | . . . . . . 5 2 Utility 7 | . . 1 . . . 4 2 Weapon 9 | . 1 2 . . . 4 2 Highest Loss Streak 7 | . 1 2 . . 1 7 3 Average Slot Usage (%) 90 | . 97 85 70 85 91 93 93 Engine 8 | . 14 14 14 14 8 6 5 Treads 6 | . . . . . 11 . 21 Leg 22 | . 28 28 28 28 24 26 2 Device 3 | . 10 . . 14 1 3 8 Storage 15 | . 14 14 14 14 18 15 15 Processor 6 | . 2 4 . . 9 7 7 Hackware 3 | . . . . . . 7 7 Protection 5 | . . . . . 7 7 4 Energy Gun 4 | . 9 . 11 14 7 2 3 Energy Cannon 2 | . . . . . 1 1 7 Ballistic Gun 6 | . 16 23 2 . 1 8 2 Naked Turns . | . . . . . . . . Heaviest Build 56 | 12 17 16 21 22 49 56 54 Greatest Support 88 | 20 20 20 20 20 80 72 88 Greatest Overweight (x) 14 | . 1 . 1 1 2 14 1 Average Overweight (x) . | . . . . 1 . . . Largest Inventory Capacity 14 | 6 8 8 8 8 14 14 14 Average Capacity 12 | 5 7 8 8 8 12 14 14 Most Carried 14 | 6 8 8 8 8 14 14 14 Average Carried 11 | 5 7 7 7 7 11 13 13 Final Capacity 14 | 6 8 8 8 8 14 14 14 Final Carried 14 | 6 8 7 8 8 14 11 11 Class Distribution -------------------- 65% | Mutant 23% | Scavenger-Mutant 7% | Skirmisher Dominant Class ---------------- Mutant | -10/Materials Mutant | -10/Mines Mutant | -10/Exiles Skirmisher | -9/Mines Mutant | -8/Materials Mutant | -7/Factory Scavenger-Mutant | -7/Storage Resources | -11 -10 -10 -10 -9 -8 -7 -7 ----------- Run | Scr Mat Min Exi Min Mat Fac Sto Matter Collected 2603 | 308 197 44 . 19 455 955 625 Remotely . | . . . . . . . . Salvage Created 4487 | 152 311 114 . . 1775 1247 888 Parts 219 | 9 19 2 . . 92 55 42 Haulers Intercepted 4 | . 1 . . . 1 1 1 Recyclers Shooed 3 | 1 . . . . . 1 1 Parts Field Recycled . | . . . . . . . . Retrieved Matter . | . . . . . . . . Parts Self-Destructed . | . . . . . . . . Prevented . | . . . . . . . . Kills | -11 -10 -10 -10 -9 -8 -7 -7 ------- Run | Scr Mat Min Exi Min Mat Fac Sto Combat Hostiles Destroyed 76 | . 7 4 . . 32 22 11 Guns 64 | . 7 4 . . 29 16 8 Cannons 10 | . . . . . 3 5 2 AOE 1 | . . . . . . . 1 Classes Destroyed 15 | 2 4 1 . . 5 3 . Worker 3 | . . . . . 1 1 1 Builder 2 | . . . . . . 1 1 Tunneler 3 | 3 . . . . . . . Hauler 4 | . 1 . . . 1 1 1 Recycler 5 | 1 . . . . . 1 3 Operator 1 | . . . . . 1 . . Watcher 6 | . 1 . . . 2 2 1 Swarmer 8 | . 3 1 . . . 3 1 Grunt 42 | . 4 1 . . 25 9 3 Brawler 1 | . . . . . 1 . . Duelist 1 | . . . . . . 1 . Sentry 13 | . . . . . 5 3 5 Hunter 2 | . . . . . 1 1 . Programmer 7 | . . . . . . 5 2 Assembled 2 | . . 2 . . . . . Best Kill Streak 4 | 2 3 2 . . 4 3 4 Combat Bots Only 4 | . 3 2 . . 4 3 3 Max Kills in Single Turn 3 | 1 1 1 . . 1 2 3 Gunslinging . | . . . . . . . . Exploded 1 | . . . . . . . 1 Melee . | . . . . . . . . Uniques/NPCs Destroyed . | . . . . . . . . Combat | -11 -10 -10 -10 -9 -8 -7 -7 -------- Run | Scr Mat Min Exi Min Mat Fac Sto Damage Taken 6199 | . 371 239 . . 712 3386 1491 Core 861 | . 64 25 . . 65 470 237 Absorbed by Shields . | . . . . . . . . Core Remaining (%) 84 | 100 . . . 64 88 . . Volleys Fired 257 | 18 36 14 . . 13 129 47 Largest 2 | 2 2 2 . . 2 2 2 Hottest 160 | 60 60 40 . . 93 93 160 Shots Fired 586 | 35 70 26 . . 128 243 84 Gun 485 | 35 70 26 . . 116 191 47 Cannon 101 | . . . . . 12 52 37 Launcher . | . . . . . . . . Special . | . . . . . . . . Kinetic 307 | 18 48 26 . . 15 176 24 Thermal 254 | 17 22 . . . 113 42 60 Explosive . | . . . . . . . . Electromagnetic 25 | . . . . . . 25 . Robot Hit Streak 17 | 5 6 9 . . 17 15 14 Robot Miss Streak 6 | 4 4 3 . . 5 5 6 Penetration Max 1 | . . . . . . 1 . Secondary Targets . | . . . . . . . . Autonomous 104 | . . . . . 104 . . Shots Hit Robots 409 | 18 39 17 . . 105 167 63 Core Hits 194 | 6 15 9 . . 50 62 52 Critical Hits 10 | . . . . . 2 8 . Critical Kills 3 | . . . . . 1 2 . Critical Parts Destroyed 7 | . . . . . 1 6 . Melee Attacks 36 | . . . . . . 27 9 Impact 36 | . . . . . . 27 9 Slashing . | . . . . . . . . Piercing . | . . . . . . . . Sneak Attacks 2 | . . . . . . 2 . Combat Hostiles . | . . . . . . . . Follow-up Attacks . | . . . . . . . . Damage Inflicted 8331 | 160 413 166 . . 2710 3411 1471 Guns 6574 | 160 413 166 . . 2538 2454 843 Cannons 1167 | . . . . . 172 622 373 Explosions 265 | . . . . . . 37 228 Melee 325 | . . . . . . 298 27 Ramming . | . . . . . . . . Kinetic 3214 | 80 228 166 . . 141 2176 423 Thermal 4344 | 80 185 . . . 2569 717 793 Explosive 228 | . . . . . . . 228 Electromagnetic 220 | . . . . . . 220 . Impact 325 | . . . . . . 298 27 Slashing . | . . . . . . . . Piercing . | . . . . . . . . Highest Corruption 10 | . . 1 1 1 2 10 10 Average Corruption 4 | . . 1 1 1 2 5 6 Corruption Purged 8 | . . . . . . . 8 Effects 120 | . . 1 3 1 6 68 41 Message Errors 31 | . . 1 1 . 4 16 9 Matter Fused 20 | . . . . . . 13 7 Heat Flow Errors 9 | . . . . . 1 4 4 Energy Discharges 10 | . . . 1 . . 5 4 Parts Rejected 1 | . . . . . . 1 . Data Loss (minor) 14 | . . . 1 1 1 7 4 Data Loss (major) 5 | . . . . . . 3 2 Misfires 5 | . . . . . . 3 2 Alerts 1 | . . . . . . . 1 Misdirections 1 | . . . . . . 1 . Targeting Errors 20 | . . . . . . 13 7 Weapon Failures 3 | . . . . . . 2 1 Overload Shots . | . . . . . . . . Overflow Damage 101 | . . . . . 1 95 5 Projectiles 15 | . . . . . 1 14 . Explosions 5 | . . . . . . . 5 Melee 81 | . . . . . . 81 . Knockbacks 6 | . . . . . . 6 . Impact 2 | . . . . . . 2 . Kinetic 4 | . . . . . . 4 . Secondary . | . . . . . . . . Self-Inflicted Damage . | . . . . . . . . Shots . | . . . . . . . . Rammed . | . . . . . . . . Targets Rammed 1 | . 1 . . . . . . Kicked 1 | . 1 . . . . . . Crushed . | . . . . . . . . Highest Temperature 416 | 40 48 20 . . 302 272 416 Average Temperature 72 | 16 20 12 . . 115 52 117 Received Heat Transfer 1654 | . 108 94 . . 342 795 315 Effects 4 | . . . . . 2 . 2 Interference 3 | . . . . . 2 . 1 Damage (minor) 1 | . . . . . . . 1 Siege Activations . | . . . . . . . . Robots Corrupted . | . . . . . . . . Combat Hostiles . | . . . . . . . . Parts Fried 4 | . . . . . . 4 . Impact Corruptions 3 | . . . . . . 3 . Robots Melted 1 | . . . . . . 1 . Combat Hostiles 1 | . . . . . . 1 . Parts Melted 8 | . . . . . 4 1 3 Heat Transferred 6617 | 175 425 . . . 3264 1234 1519 Parts Sabotaged . | . . . . . . . . Parts Stolen . | . . . . . . . . Parts Stripped . | . . . . . . . . Power Chain Reactions 1 | . . . . . . 1 . Missiles Intercepted . | . . . . . . . . Alert | -11 -10 -10 -10 -9 -8 -7 -7 ------- Run | Scr Mat Min Exi Min Mat Fac Sto Peak Influence 805 | 20 336 225 . . 640 805 558 Initial 362 | . 13 130 . . . 252 362 Average 380 | 10 149 169 . . 375 468 389 Maximum Alert Level 3 | . 1 1 . . 2 3 2 Low Security (%) 27 | 100 71 76 . 100 24 24 . Level 1 28 | . 28 23 . . 16 24 58 Level 2 27 | . . . . . 59 11 41 Level 3 16 | . . . . . . 39 . Level 4 . | . . . . . . . . Level 5 . | . . . . . . . . High Security . | . . . . . . . . Max Security . | . . . . . . . . Squads Dispatched 28 | . 3 . . . 9 13 3 Investigation 12 | . 2 . . . 3 6 1 Extermination 6 | . . . . . . 4 2 Reinforcement 8 | . 1 . . . 5 2 . Assault 1 | . . . . . 1 . . Garrison 1 | . . . . . . 1 . Intercept . | . . . . . . . . Construction Impeded 2 | . . . . . 1 1 . Haulers Reinforced 1 | . . . . . . 1 . Stealth | -11 -10 -10 -10 -9 -8 -7 -7 --------- Run | Scr Mat Min Exi Min Mat Fac Sto Distress Signals 8 | . 1 1 . . 5 . 1 Communications Jammed . | . . . . . . . . Distress Signals . | . . . . . . . . Times Spotted 131 | . 19 8 . . 49 40 15 Peak Tracking Total 6 | . 6 4 . . 5 4 3 Tactical Retreats 16 | . 3 3 . . 4 6 . Traps | -11 -10 -10 -10 -9 -8 -7 -7 ------- Run | Scr Mat Min Exi Min Mat Fac Sto Traps Triggered 7 | . 3 . . . 1 3 . Indirectly . | . . . . . . . . Trap Hack Attempts . | . . . . . . . . Triggered . | . . . . . . . . Disarmed . | . . . . . . . . Reprogrammed 4 | . 4 . . . . . . Reused 4 | . 4 . . . . . . Traps Extracted . | . . . . . . . . Installed . | . . . . . . . . Triggered 4 | . 4 . . . . . . Machines | -11 -10 -10 -10 -9 -8 -7 -7 ---------- Run | Scr Mat Min Exi Min Mat Fac Sto Machines Disabled 8 | . . . . . 1 3 4 Max in Single Turn 2 | . . . . . 1 1 2 Machines Sabotaged . | . . . . . . . . Garrisons Compromised . | . . . . . . . . Overloaded Fab Kills . | . . . . . . . . Fab Network Shutdowns 1 | . . . . . . 1 . Hacking | -11 -10 -10 -10 -9 -8 -7 -7 --------- Run | Scr Mat Min Exi Min Mat Fac Sto Machines Accessed 41 | . 5 . . . 10 19 7 Terminals 24 | . 4 . . . 7 9 4 Fabricators 3 | . . . . . . 3 . Repair Stations 3 | . . . . . . 1 2 Recycling Units 6 | . 1 . . . 2 2 1 Scanalyzers 4 | . . . . . 1 3 . Garrison Access 1 | . . . . . . 1 . Total Hacks 122 | . 16 . . . 30 63 13 Successful 65 | . 10 . . . 15 33 7 Failed 57 | . 6 . . . 15 30 6 Catastrophic 8 | . . . . . 4 2 2 Database Lockouts . | . . . . . . . . Manual 59 | . 10 . 1 . 19 23 6 Terminals 74 | . 13 . . . 21 34 6 Fabricators 9 | . . . . . . 9 . Repair Stations 6 | . . . . . . 2 4 Recycling Units 18 | . 3 . . . 7 5 3 Scanalyzers 12 | . . . . . 2 10 . Garrison Access 3 | . . . . . . 3 . Terminal Hacks 22 | . 5 . . . 7 8 2 Record 1 | . . . . . . . 1 Prototype ID Bank 5 | . . . . . 4 1 . Branch Access Points 3 | . 1 . . . 1 1 . Terminal Index 2 | . 1 . . . . 1 . Alert Level 3 | . . . . . . 2 1 Unreport Threat 1 | . . . . . . 1 . Reprogram Traps 1 | . 1 . . . . . . Patrol Status 1 | . . . . . . 1 . Coupling Status 1 | . 1 . . . . . . Hauler Manifests 3 | . 1 . . . 1 1 . Registered Components 1 | . . . . . 1 . . Fabricator Hacks 5 | . . . . . . 5 . Load Schematic 3 | . . . . . . 3 . Build 2 | . . . . . . 2 . Repair Station Hacks 6 | . . . . . . 2 4 Scan Component 3 | . . . . . . 1 2 Repair 3 | . . . . . . 1 2 Recycling Unit Hacks 8 | . 2 . . . 2 3 1 Report Inventory 5 | . 1 . . . 1 2 1 Retrieve Components 3 | . 1 . . . 1 1 . Scanalyzer 9 | . . . . . 1 8 . Insert Component 6 | . . . . . 1 5 . Analyze 3 | . . . . . . 3 . Garrison Access Hacks 1 | . . . . . . 1 . Coupler Status 1 | . . . . . . 1 . Unauthorized Hacks 14 | . 3 . . . 5 6 . Terminals 8 | . 2 . . . 3 3 . Track 3 | . 1 . . . 1 1 . Assimilate 2 | . . . . . 1 1 . Operators 3 | . 1 . . . 1 1 . Fabricators . | . . . . . . . . Repair Stations . | . . . . . . . . Recycling Units 5 | . 1 . . . 2 2 . Tunnel 5 | . 1 . . . 2 2 . Scanalyzers . | . . . . . . . . Garrison Access 1 | . . . . . . 1 . Reprogram 1 | . . . . . . 1 . Data Cores Recovered 1 | . . . . . 1 . . Used 1 | . . . . . 1 . . Hacking Detections 36 | . 5 . . . 9 17 5 Full Trace Events 8 | . 1 . . . 2 4 1 Feedback Events . | . . . . . . . . Feedback Blocked . | . . . . . . . . Robot Schematics Acquired . | . . . . . . . . Robots Built . | . . . . . . . . Matter . | . . . . . . . . Time . | . . . . . . . . Total Robot Build Rating . | . . . . . . . . Part Schematics Acquired 3 | . . . . . . 3 . Parts Built . | . . . . . . . . Matter 190 | . . . . . . 190 . Time 95 | . . . . . . 95 . Total Part Build Rating . | . . . . . . . . Parts Repaired 1 | . . . . . . 1 . Time 126 | . . . . . . 38 88 Parts Recycled . | . . . . . . . . Recycled Matter . | . . . . . . . . Retrieved Matter . | . . . . . . . . Retrieved Components 22 | . 3 . . . 9 10 . Parts Scanalyzed 3 | . . . . . . 3 . Part Schematics Acquired 3 | . . . . . . 3 . Parts Damaged . | . . . . . . . . Bothacking | -11 -10 -10 -10 -9 -8 -7 -7 ------------ Run | Scr Mat Min Exi Min Mat Fac Sto Used RIF Installer . | . . . . . . . . Robots Hacked . | . . . . . . . . Non-combat . | . . . . . . . . Combat . | . . . . . . . . Robot Hacks Applied . | . . . . . . . . Relay Couplers Released . | . . . . . . . . Robots Rewired . | . . . . . . . . Allies Hacked . | . . . . . . . . Hacks Repelled . | . . . . . . . . Allies | -11 -10 -10 -10 -9 -8 -7 -7 -------- Run | Scr Mat Min Exi Min Mat Fac Sto Total Allies 2 | . . . . . . 2 . Largest Group 1 | . . . . . . 1 . Highest-Rated Group 32 | . . . . . . 32 . Highest-Rated Ally 32 | . . . . . . 32 . Total Orders 2 | . . . . . . 2 . ROAM 1 | . . . . . . 1 . FOLLOW 1 | . . . . . . 1 . Ally Attacks 1 | . . . . . . 1 . Total Damage 6 | . . . . . . 6 . Kills . | . . . . . . . . Allies Corrupted . | . . . . . . . . Allies Melted . | . . . . . . . . Intel | -11 -10 -10 -10 -9 -8 -7 -7 ------- Run | Scr Mat Min Exi Min Mat Fac Sto Robot Analysis Total . | . . . . . . . . Derelict Logs Recovered 2 | . . 1 . 1 . . . Drone Launches . | . . . . . . . . Drone Recoveries . | . . . . . . . . Exploration | -11 -10 -10 -10 -9 -8 -7 -7 ------------- Run | Scr Mat Min Exi Min Mat Fac Sto Turns Passed 7148 | 135 375 259 765 129 1617 2698 1170 Spaces Moved 4002 | 57 198 185 533 83 994 1475 477 Core 5 | 1 . . . . . 4 . Treads 846 | . . . . . 320 49 477 Legs 3147 | 52 198 185 533 83 674 1422 . Wheels 4 | 4 . . . . . . . Hover . | . . . . . . . . Flight . | . . . . . . . . Fastest Speed 50 | 50 120 120 120 150 127 122 160 Average Speed 136 | 117 120 120 142 150 137 129 161 Slowest Speed 750 | 120 150 120 150 150 190 750 180 Overloaded Moves . | . . . . . . . . Propulsion Burnouts . | . . . . . . . . Robots Hopped . | . . . . . . . . Cave-ins Triggered 1 | . . . . . . . 1 Exploration Rate (%) 44 | 5 42 53 80 16 70 33 54 Regions Visited 7 Branch Regions 4 Pre-discovered Areas 5 | . 1 . . . 2 2 . Known Exits Taken 4 | . 1 . 1 . 1 1 . Unknown Exits Taken 3 | 1 . 1 . 1 . . . Scrap Searched 1 | . . . . 1 . . . Spaces Dug 18 | . . . . . . 10 8 Terrain Destroyed 67 | . . . . . 18 15 34 Melee 16 | . . . . . . 10 6 Projectile 30 | . . . . . 18 1 11 AOE 21 | . . . . . . 4 17 Terrain Rammed . | . . . . . . . . Walls Destroyed . | . . . . . . . . Machines Disabled . | . . . . . . . . Actions | -11 -10 -10 -10 -9 -8 -7 -7 --------- Run | Scr Mat Min Exi Min Mat Fac Sto Total 5185 | 90 267 199 538 88 1228 2004 771 Wait 656 | . 14 . . 2 160 296 184 Move 3995 | 56 197 184 532 82 993 1474 477 Hop . | . . . . . . . . Pick Up 48 | 5 5 . . 2 15 12 9 Fast Attach 51 | 9 4 . 3 . 8 14 13 Attach 32 | . 2 1 . 1 9 11 8 Detach 10 | 1 . . 1 . 4 1 3 Swap 41 | . 3 . . . 8 21 9 Drop 58 | 1 5 . 2 1 18 19 12 Fire 257 | 18 36 14 . . 13 129 47 Melee 36 | . . . . . . 27 9 Ram . | . . . . . . . . Kick 1 | . 1 . . . . . . Crush . | . . . . . . . . Escape Stasis . | . . . . . . . . Rewire . | . . . . . . . . Trap . | . . . . . . . . Miscellaneous . | . . . . . . . . Route ------- -11/Scrapyard -10/Materials -10/Mines -10/Exiles (discovered 2 exits: *Min x2) -9/Mines -8/Materials (discovered 2 exits: *Fac x2) -7/Factory (discovered 4 exits: *Fac / *Sto / Low x2) -7/Storage History --------- Turn | Location | Event 11 | -11/Scrapyard | Discovered new exit (range 15) 136 | -11/Scrapyard | Entered Materials 261 | -10/Materials | Discovered new exit (range 16) 317 | -10/Materials | Build established: Mutant 436 | -10/Materials | Identified exit to Mines 511 | -10/Materials | Entered Mines 537 | -10/Mines | Met a Derelict bent on vengeance 563 | -10/Mines | Assembled infested the area 765 | -10/Mines | Deemed a non-threat by the Exiles lab entrance 765 | -10/Mines | Discovered new exit (range 5) 770 | -10/Mines | Entered Exiles 771 | -10/Exiles | Identified exit to Mines 814 | -10/Exiles | Met 8R-AWN 838 | -10/Exiles | Met EX-HEX 872 | -10/Exiles | Met EX-BIN 886 | -10/Exiles | Aligned with FarCom system 887 | -10/Exiles | Given EX-Vault access code 914 | -10/Exiles | Opened EX-Vault 926 | -10/Exiles | Found Prototype Energy Gun 926 | -10/Exiles | Identified AWS/Thermal 930 | -10/Exiles | Found Prototype Energy Cannon 930 | -10/Exiles | Identified YOLO Cannon 1013 | -10/Exiles | Warned to stay clear of 0b10 Research branches 1067 | -10/Exiles | Met EX-DEC 1209 | -10/Exiles | Visited The Gauntlet 1535 | -10/Exiles | Left Exiles lab with AWS/Thermal 1535 | -10/Exiles | Entered Mines 1646 | -9/Mines | Learned Materials terminal intel 1659 | -9/Mines | Discovered new exit (range 4) 1664 | -9/Mines | Entered Materials 1664 | -8/Materials | Evolved 4 slots: Propulsion x2, Utility x2 1665 | -8/Materials | Loaded intel: 12 terminal locations 1838 | -8/Materials | Build established: Skirmisher 2060 | -8/Materials | Discovered new exit (range 8) 2068 | -8/Materials | Identified exit to Factory 2268 | -8/Materials | Discovered exit to Factory (range 11) 2536 | -8/Materials | Build established: Mutant 2864 | -8/Materials | First assault squad dispatched 3281 | -8/Materials | Entered Factory 3281 | -7/Factory | Evolved 2 slots: Utility x2 3546 | -7/Factory | Repaired Titanium Leg 3591 | -7/Factory | Identified exit to Storage 3591 | -7/Factory | Identified exit to Lower Caves 4508 | -7/Factory | Garrison activated, responded to threat 4602 | -7/Factory | Local fabrication network quarantined 5415 | -7/Factory | Discovered new exit (range 11) 5431 | -7/Factory | Identified exit to Factory 5503 | -7/Factory | Build established: Scavenger-Mutant 5776 | -7/Factory | Core integrity fell below 50% 5823 | -7/Factory | Lost 7 parts (1p3n3w) 5911 | -7/Factory | System corruption reached 10% 5979 | -7/Factory | Entered Storage 6334 | -7/Storage | Core integrity fell below 20% 6519 | -7/Storage | Crushed by falling debris 7149 | -7/Storage | Destroyed by S-27 Virus with Autogun Last Messages --------------- 06930_ System corrupted: Heat flow error (+253). 06932_ U-05 Engineer builds a Wall. 06946_ System corrupted: Matter fused (-5). 06948_ U-05 Engineer lays Concrete. 06950_ U-05 Engineer builds a Wall. 06972_ System Backup Module purges 1% of system corruption (4%). 06975_ System Backup Module purges 1% of system corruption (3%). 06979_ ALERT: Rogue bot located, Programmers report to Storage Zone 1S. 07022_ Imp. Heat Sink melted. 07022_ P-60 Hacker destroyed. 07022_ U-05 Engineer destroyed. 07026_ Acquired 27 matter. 07029_ Acquired Wheel. 07031_ Acquired 10 matter. 07106_ Connecting with Terminal... 07123_ S>W=D|VM#8# NYFHWWABRJZLSM=OR 07130_ Imp. Propulsion Shielding destroyed. 07134_ System Backup Module destroyed. 07144_ S-27 Virus destroyed. 07147_ Plasma Cannon destroyed. Map ----- +----------------------------------------------------+ | | | | | | | | | | | | | | | | | | | | | | | | | | | | | | | | | | | | | | | | | | | ?????????????????????????????????????????????????? | | ??????????????###Y#???????????#################### | | ??????????????# ?????????# ^ | | ??????????????#""" ######## s*^ | | ??????????????#""" ; @ *%[ s ^% | | ??????????????#""" #### = ;######+##+#### | | ??????????????# ?????# "" ##????# | | ??????????????#""" ???????# ""u "#?####! """ | | ???????????????""?????????# "T T#?#"""% """ | | ??????????????????????????# "" "#?#"R """ | | ??????????????????????????# "" ##?#""!%! | | ??????????????????????##### ##?#### """ | | ??????????????????? ###### """ | | ??????????????????? ssss + """ | | ????????????????????####### ##+######## | | ??????????????????????????# # ########## | | ???????????????????????Y??#^^ # """"" ## | | ??????????????????????????# ^ # """"" ## | | ??????????????????????????# # """"" # !* | | ??????????????????????????# # ##]%= ! | | ??????????????????????????# # ## % | | ??????????????????????????# # ## | | ??????????????????????????#? ?# ## | | ????????????????????????????? ########### | | ?????????????????????????????? ###???????# | | ??????????????????????????????? ??????##" | | ???????????????????????????????? ???????#"R"### | | ????????????????????????????????? ??????#"""#?## | | ?????????????????????????????????? ??????#######? | +----------------------------------------------------+ Best States ------------- Heat Dissipation 53 Energy Generation 18 Energy Capacity 290 Matter Stores 300 Matter Capacity 450 Sight Range 16 Robot Scan Range 20 Terrain Scan Range 20 Terrain Scan Density 60 Armor Coverage 450 Power Shielding 66 Propulsion Shielding 66 Reclamation Efficiency 15 Evasion (%) 40 Recoil Reduction 4 Offensive Hacking 10 Item Schematics ----------------- Carbon-fiber Leg | -7/Factory | Scanalyzed Lgt. Angular Momentum Engine | -7/Factory | Scanalyzed Adv. Heat Sink | -7/Factory | Scanalyzed Robot Schematics ------------------ None Fabricated ------------ Nothing Alien Tech Used ----------------- None Achievements -------------- Everything Is Under Control Challenges ------------ None Game ------ Seed BoreMappingMeganuke Manual? 0 Play Time 01:35:59 Cumulative 32.9 hours Start 2021.06.27 @ 23:19:29 End 2021.06.28 @ 02:29:46 Sessions 3 Manual Loads 0 Difficulty Rogue Special Mode None Game No. 17 Rogue 17 Adventurer 0 Explorer 0 Win Type - Total 0 Types 0/0/0/0/0/0/0/0/0 Lore% 23 Gallery% 36 Achievement% 23 Wizard Run 0 Options --------- ASCII 0 Keyboard 0 Movement Numpad Keybinds 0 Fullscreen 1 Font 18/X11Bold Map View 76x50 Tactical HUD 1 Map Filters NONE Filters NONE Steam 1 RUN: 1959d4eb-2a82-4f8f-a811-165ea804e436